bitfinex-derivatives/quotes_ETHF0:USTF0_20241230
["timestamp","ask_amount","ask_price","bid_price","bid_amount"]
[1735592356467,0.29442,3400.7,3400.5,41.09443]
[1735592356770,3.6261,3401.0,3400.5,40.8]
[1735592356978,3.6261,3401.0,3400.7,0.29441]
[1735592357168,3.6261,3401.0,3400.5,40.8]
[1735592357364,0.29442,3400.8,3400.7,0.29441]
[1735592357870,3.6261,3401.0,3400.2,2.82499361]
[1735592358074,0.29443,3400.6,3400.5,0.29443]
[1735592358271,3.6261,3401.0,3400.5,40.8]
[1735592358471,0.29443,3400.6,3400.5,0.29443]
[1735592358672,0.29443,3400.6,3400.5,0.29444]
[1735592358870,0.29445,3400.4,3400.3,41.09445]
[1735592359070,0.73601,3400.9,3400.4,0.29444]
[1735592359071,0.29444,3400.5,3400.4,0.29444]
[1735592359374,3.6261,3401.0,3400.9,0.2944]
[1735592359375,3.2078,3401.0,3400.9,0.2944]
[1735592359571,4.60650699,3401.7,3401.4,0.29436]
[1735592359877,3.7411416,3401.5,3401.4,0.29436]
[1735592360081,3.7411416,3401.5,3401.1,2.36479361]
[1735592360082,3.4467916,3401.5,3401.3,1.197]
[1735592360276,3.7411416,3401.5,3401.3,1.49136]
[1735592360475,0.29435,3401.5,3401.3,1.49136]
[1735592360773,0.29435,3401.5,3401.4,0.29436]
[1735592361175,0.29437,3401.4,3401.2,0.29437]
[1735592361370,0.29437,3401.4,3401.0,1.3023]
[1735592361371,3.2078,3401.4,3401.0,0.8776]
[1735592361571,3.2078,3401.4,3401.3,0.29437]
[1735592362269,0.29433,3401.8,3401.1,3.10074361]
[1735592362476,0.29433,3401.8,3401.6,0.29434]
[1735592362766,0.29433,3401.8,3401.2,0.4383]
[1735592362767,0.29433,3401.8,3401.7,0.29433]
[1735592362968,3.2078,3401.9,3401.8,0.29432]
[1735592363168,3.2078,3402.4,3401.6,1.197]
[1735592363374,0.2943,3402.2,3401.8,0.29432]
[1735592363578,0.2943,3402.2,3402.1,0.2943]
[1735592363774,0.29428,3402.3,3402.2,0.29429]
[1735592363976,0.29429,3402.2,3402.1,0.2943]
[1735592364170,0.2943,3402.1,3401.7,0.8893]
[1735592364371,6.6545916,3402.8,3402.0,2.36479361]
[1735592364577,6.6545916,3402.8,3402.7,0.29425]
[1735592364776,0.29429,3402.3,3402.2,0.29428]
[1735592364975,6.6545916,3402.8,3402.1,0.29429]
[1735592364976,0.29429,3402.2,3402.1,0.29429]
[1735592365377,5.57259361,3402.4,3401.7,0.8893]
[1735592365572,0.29432,3401.9,3401.8,0.29432]
[1735592365772,0.29431,3402.0,3401.9,0.29431]
[1735592365980,5.57259361,3402.4,3401.7,3.25409361]
[1735592365981,3.2078,3402.4,3401.7,3.25409361]
[1735592366174,0.4243,3402.7,3402.2,3.2078]
[1735592366381,0.4376,3402.9,3402.8,0.29424]
[1735592366577,0.29425,3402.7,3402.6,0.29425]
[1735592366880,6.01019361,3402.9,3402.3,0.4405]
[1735592367072,3.2078,3402.5,3402.3,0.4405]
[1735592367280,3.2078,3402.5,3402.4,0.29427]
[1735592367680,0.73547,3403.4,3402.4,1.197]
[1735592367681,3.2078,3403.4,3402.4,1.197]
[1735592367873,3.2078,3403.4,3402.7,2.36479361]
[1735592368081,3.2078,3403.4,3402.8,0.4283]
[1735592368487,3.2078,3403.4,3402.9,0.4501]
[1735592368678,0.29422,3403.0,3402.9,0.74432]
[1735592369184,0.29421,3403.1,3403.0,0.29421]
[1735592369577,0.29422,3403.0,3402.9,0.4501]
[1735592369774,3.2078,3403.4,3402.9,0.4501]
[1735592369977,0.4376,3403.5,3402.9,0.4501]
[1735592370178,3.4467916,3403.8,3403.7,0.29416]
[1735592370376,3.7409416,3403.8,3403.7,1.49116]
[1735592370580,3.4467916,3403.8,3403.7,1.49116]
[1735592371480,0.4539,3404.1,3403.7,1.197]
[1735592372189,0.4539,3404.1,3403.6,0.8743]
[1735592372190,0.29416,3403.7,3403.6,0.8743]
[1735592372385,3.2078,3403.8,3402.4,0.73567]
[1735592372386,5.57259361,3403.8,3402.4,0.73567]
[1735592372579,0.29418,3403.5,3403.3,0.29419]
[1735592372784,0.29417,3403.6,3403.4,0.29419]
[1735592372984,3.2078,3403.8,3403.0,2.36479361]
[1735592373187,0.73535,3404.0,3403.0,2.65901361]
[1735592373188,3.2078,3403.4,3403.0,2.65901361]
[1735592373491,3.2078,3403.9,3403.0,2.36479361]
[1735592373689,0.2942,3403.3,3403.2,0.2942]
[1735592373891,0.2942,3403.3,3403.0,2.36479361]
[1735592374080,3.2078,3403.1,3402.7,2.36479361]
[1735592374291,3.2078,3403.1,3402.5,2.36479361]
[1735592374587,3.2078,3403.1,3402.6,0.29426]
[1735592374588,0.29422,3403.0,3402.6,0.29426]
[1735592374788,3.2078,3403.1,3402.8,0.29423]
[1735592374981,0.29423,3402.9,3402.8,0.29423]
[1735592375889,0.29423,3402.9,3402.0,0.73576]
[1735592375890,0.29424,3402.8,3401.8,0.29432]
[1735592376191,5.57259361,3402.1,3401.2,3.6695]
[1735592376390,0.29437,3401.3,3401.2,0.75607]
[1735592376589,0.29435,3401.6,3401.4,0.29435]
[1735592376891,3.2078,3401.7,3401.2,0.4617]
[1735592377294,0.29436,3401.5,3401.3,0.29436]
[1735592377592,0.29437,3401.4,3401.2,0.4617]
[1735592377792,0.29436,3401.5,3401.4,0.29436]
[1735592378193,0.29436,3401.4,3401.3,0.29436]
[1735592378489,3.2078,3401.7,3401.1,41.227]
[1735592378697,0.29441,3401.2,3401.1,41.227]
[1735592378896,3.2078,3401.3,3400.3,3.2078]
[1735592379094,3.2078,3400.9,3400.2,0.4344]
[1735592379290,3.2078,3401.1,3401.0,0.29442]
[1735592379491,0.4399,3402.0,3401.0,0.29442]
[1735592379492,3.2078,3401.5,3401.4,0.29439]
[1735592379691,3.2078,3401.5,3401.3,2.36479361]
[1735592379898,3.2078,3401.5,3401.1,0.4209]
[1735592380090,3.2078,3401.5,3401.3,0.2944]
[1735592380399,3.2078,3401.5,3401.4,0.29439]
[1735592380593,3.2078,3401.5,3401.1,1.6179]
[1735592380594,3.50218,3401.5,3401.1,1.6179]
[1735592380800,3.50218,3401.5,3401.2,0.29441]
[1735592380992,3.50218,3401.5,3401.3,40.8]
[1735592381193,3.50218,3401.5,3401.3,41.09439]
[1735592381194,3.2078,3401.5,3401.3,41.09439]
[1735592381394,3.2078,3401.5,3401.3,40.8]
[1735592381590,3.2078,3401.5,3401.2,0.29441]
[1735592381800,3.2078,3401.5,3401.1,0.4209]
[1735592382002,3.2078,3401.5,3401.3,0.29439]
[1735592382302,3.2078,3401.9,3401.3,2.36479361]
[1735592382502,0.29436,3401.8,3401.3,2.36479361]
[1735592382799,3.2078,3401.9,3401.8,0.29435]
[1735592383100,0.4399,3402.0,3401.8,0.29435]
[1735592383301,0.4399,3402.0,3401.5,3.2078]
[1735592383602,0.73424,3402.0,3401.7,0.29436]
[1735592383998,0.29438,3401.6,3401.3,0.2944]
[1735592384200,3.2078,3401.9,3401.3,0.2944]
[1735592384398,0.29437,3401.7,3401.4,0.29438]
[1735592384799,3.6331,3401.9,3401.2,0.4317]
[1735592385095,0.2944,3401.3,3401.2,0.4317]
[1735592385702,3.2078,3401.5,3400.7,5.57259361]
[1735592386007,0.29439,3401.4,3401.1,0.29441]
[1735592386500,0.2944,3401.3,3401.0,0.29442]
[1735592386700,3.2078,3401.5,3400.8,0.4317]
[1735592386701,5.57259361,3401.5,3400.8,0.4317]
[1735592386905,0.29442,3401.0,3400.8,0.4317]
[1735592387099,3.2078,3401.1,3400.8,0.4317]
[1735592387302,0.29443,3401.0,3400.8,0.4317]
[1735592387502,0.29442,3401.1,3400.8,0.72614]
[1735592387696,3.2078,3401.1,3400.8,0.4317]
[1735592388799,3.50222,3401.1,3400.9,0.29443]
[1735592389198,3.50222,3401.1,3400.1,40.8]
[1735592389199,10.57259361,3401.1,3400.1,40.8]
[1735592389403,3.2078,3400.6,3400.4,0.29447]
[1735592389703,3.50227,3400.6,3399.9,0.4452]
[1735592389904,3.2078,3400.6,3400.0,40.8]
[1735592390204,3.2078,3400.6,3400.5,0.29447]
[1735592390805,3.92462,3401.0,3400.8,0.29444]
[1735592391006,0.29445,3400.7,3400.4,0.29447]
[1735592391300,3.50227,3400.5,3400.3,0.29448]
[1735592391507,3.50227,3400.5,3400.2,0.4215]
[1735592391508,3.2078,3400.5,3400.2,0.4215]
[1735592391810,3.2078,3400.5,3400.3,0.29448]
[1735592392204,0.29448,3400.3,3400.2,0.4215]
[1735592392411,0.29452,3399.9,3399.7,0.4215]
[1735592392703,3.2078,3400.3,3399.8,40.8]
[1735592392902,0.29449,3400.2,3399.8,40.8]
[1735592393103,3.2078,3400.3,3399.8,40.8]
[1735592393301,3.2078,3400.7,3399.8,40.8]
[1735592393700,3.50225,3400.7,3400.5,0.29446]
[1735592394302,0.29447,3400.5,3400.3,0.29448]
[1735592394508,3.50225,3400.7,3400.6,0.29446]
[1735592394707,3.2078,3400.7,3400.6,0.29446]
[1735592395098,3.4467916,3401.1,3400.6,0.29446]
[1735592395303,3.4467916,3401.1,3399.9,0.424]
[1735592395304,3.2078,3400.9,3400.8,0.29444]
[1735592395610,3.50223,3400.9,3400.8,0.29444]
[1735592396008,0.29446,3400.6,3400.4,0.29447]
[1735592396207,3.50227,3400.5,3400.3,0.29448]
[1735592396409,5.57259361,3400.5,3399.9,41.224]
[1735592396713,0.29452,3399.9,3399.7,0.74543]
[1735592396907,3.2078,3400.1,3399.7,0.4509]
[1735592397211,3.2078,3400.1,3399.7,41.2509]
[1735592397514,3.50231,3400.1,3399.9,0.29452]
[1735592397810,3.2078,3400.1,3400.0,0.29451]
[1735592398207,0.73858,3400.4,3399.7,41.98724]
[1735592398406,3.4467916,3400.9,3400.8,0.29444]
[1735592399006,3.50217,3401.7,3401.2,0.29441]
[1735592399007,3.4467916,3401.3,3401.2,0.29441]
[1735592399208,3.4467916,3401.3,3401.2,41.09441]
[1735592399402,6.6545916,3401.3,3401.2,41.09441]
[1735592399804,6.6545916,3401.3,3401.2,40.8]
[1735592400011,6.6545916,3401.3,3400.9,0.29443]
[1735592400012,9.01938521,3401.3,3400.9,0.29443]
[1735592400210,9.01938521,3401.3,3400.3,1.214]
[1735592400211,2.36479361,3401.0,3400.3,1.214]
[1735592400415,3.2078,3400.9,3400.3,1.214]
[1735592403015,3.2078,3400.9,3400.1,0.443]
[1735592403321,0.8635,3401.2,3400.1,0.443]
[1735592403322,3.2078,3400.5,3400.1,0.443]
[1735592403515,3.2078,3400.5,3399.8,3.6481]
[1735592403711,3.2078,3400.9,3400.1,2.36479361]
[1735592403912,3.2078,3400.9,3400.4,2.36479361]
[1735592404106,3.2078,3400.9,3400.5,0.4544]
[1735592406711,3.2078,3401.3,3400.8,2.36479361]
[1735592407607,3.2078,3401.3,3400.6,40.8]
[1735592407608,3.2078,3400.9,3400.6,40.8]
[1735592407813,3.2078,3400.9,3400.5,0.4544]
[1735592408416,3.2078,3401.3,3400.5,0.4544]
[1735592410719,3.2078,3401.3,3400.5,2.81919361]
[1735592410921,3.2078,3401.3,3401.1,2.36479361]
[1735592411123,3.2078,3401.3,3401.2,0.418]
[1735592412218,3.2078,3401.3,3400.8,3.57879361]
[1735592412219,3.2078,3401.3,3400.8,1.214]
[1735592413225,3.2078,3401.3,3400.9,0.4207]
[1735592418121,3.2078,3401.3,3401.0,2.81499361]
[1735592418320,3.2078,3401.3,3401.1,0.4213]
[1735592420125,3.2078,3401.7,3401.1,3.6291]
[1735592420320,3.2078,3401.7,3401.6,2.36479361]
[1735592420827,3.2078,3401.7,3401.3,2.36479361]
[1735592421123,3.2078,3401.7,3401.2,40.8]
[1735592424021,3.2078,3401.7,3401.3,2.36479361]
[1735592424423,3.2078,3401.7,3401.4,0.4284]
[1735592428927,0.4414,3401.6,3401.4,0.4284]
[1735592429428,3.2078,3401.7,3401.4,0.4284]
[1735592430230,3.2078,3401.7,3401.6,0.29437]
[1735592430727,3.2078,3401.7,3401.6,2.65916361]
[1735592431327,3.4467916,3402.0,3401.9,0.29435]
[1735592431528,3.4467916,3402.0,3401.9,41.09435]
[1735592431736,3.4467916,3402.0,3401.9,43.45914361]
[1735592432128,3.4467916,3402.0,3401.9,41.09435]
[1735592432337,3.50212,3402.2,3402.1,0.29433]
[1735592432825,3.2078,3402.2,3402.1,0.29433]
[1735592434231,3.50212,3402.2,3402.1,0.29433]
[1735592435733,3.2078,3402.2,3402.1,0.29433]
[1735592436135,3.50212,3402.2,3402.1,0.29433]
[1735592437433,3.2078,3402.2,3402.1,0.29433]
[1735592438538,3.50212,3402.2,3402.1,0.29433]
[1735592439044,3.2078,3402.2,3401.8,1.237]
[1735592439233,0.453,3402.1,3401.3,4.05349361]
[1735592439440,3.2078,3401.8,3401.7,0.29436]
[1735592439941,3.6274,3401.8,3401.7,0.29436]
[1735592441134,3.92175,3401.8,3401.7,0.29436]
[1735592441338,0.73592,3401.7,3400.8,0.7361]
[1735592441531,0.29441,3401.2,3401.1,0.29441]
[1735592441735,0.2944,3401.3,3401.2,0.2944]
[1735592441936,3.2078,3401.4,3401.2,40.8]
[1735592442139,0.2944,3401.3,3401.2,41.0944]
[1735592442338,0.2944,3401.3,3401.2,0.2944]
[1735592442533,3.2078,3401.4,3401.1,2.36479361]
[1735592442734,3.2078,3401.4,3401.3,0.2944]
[1735592443139,3.9064916,3402.0,3401.3,0.426]
[1735592443140,3.4467916,3402.0,3401.3,0.426]
[1735592443348,9.372316,3402.1,3401.6,3.10071361]
[1735592443648,9.372316,3402.1,3402.0,0.29434]
[1735592443649,5.743716,3402.1,3402.0,0.29434]
[1735592444148,5.743716,3402.1,3402.0,0.72034]
[1735592444639,5.743716,3402.1,3402.0,1.62094]
[1735592444841,3.2078,3402.5,3402.0,1.62094]
[1735592445148,3.2078,3402.5,3402.4,0.2943]
[1735592446447,3.2078,3402.5,3402.4,41.0943]
[1735592447846,3.50209,3402.5,3402.4,41.0943]
[1735592448249,3.50209,3402.5,3402.4,0.2943]
[1735592448853,3.2078,3402.5,3402.4,0.2943]
[1735592451447,3.2078,3402.5,3401.6,2.36479361]
[1735592451650,3.2078,3402.5,3362.0,5.37628312]
[1735592451651,0.29437,3401.6,3401.5,0.29437]
[1735592451843,3.2078,3401.6,3401.5,0.29437]
[1735592452143,3.50217,3401.6,3401.5,0.29437]
[1735592452345,0.29438,3401.5,3401.4,6.89599003]
[1735592452547,3.2078,3401.6,3400.9,7.31229003]
[1735592452748,3.2078,3401.1,3401.0,0.29442]
[1735592453455,3.6259,3401.1,3401.0,0.29442]
[1735592457955,3.6259,3401.1,3401.0,41.09442]
[1735592459851,3.2078,3401.1,3401.0,43.45921361]
[1735592460751,6.65902128,3401.5,3401.0,43.16479361]
[1735592460953,3.2078,3401.5,3401.4,0.29439]
[1735592461162,0.29439,3401.4,3401.3,0.29439]
[1735592461558,3.50218,3401.5,3401.4,0.29439]
[1735592461957,3.50218,3401.5,3401.3,0.29439]
[1735592461958,3.2078,3401.5,3401.3,0.29439]
[1735592462263,0.29439,3401.4,3401.3,0.2944]
[1735592462456,0.29439,3401.4,3401.2,0.2944]
[1735592463260,3.50219,3401.5,3401.3,0.29439]
[1735592463460,4.18561128,3401.4,3401.2,0.2944]
[1735592463963,0.2944,3401.3,3401.2,0.2944]
[1735592464262,4.18561128,3401.4,3401.3,0.2944]
[1735592465760,0.2944,3401.3,3401.2,0.2944]
[1735592466663,0.73439,3401.4,3401.2,0.2944]
[1735592467061,0.73439,3401.4,3401.3,0.2944]
[1735592467669,3.50218,3401.5,3401.4,0.29439]
[1735592467868,3.2078,3401.5,3401.4,0.29439]
[1735592476178,3.50218,3401.5,3401.4,0.29439]
[1735592476375,3.2078,3401.5,3401.4,0.29439]
[1735592476870,3.50218,3401.5,3401.4,0.29439]
[1735592477071,3.2078,3401.5,3401.4,0.29439]
[1735592477474,3.45122128,3401.7,3401.6,0.29437]
[1735592478080,3.74558128,3401.7,3401.6,0.29437]
[1735592478376,0.29436,3401.7,3401.6,0.29437]
[1735592478768,0.29436,3401.7,3401.3,0.862]
[1735592478976,3.50218,3401.5,3401.4,0.29438]
[1735592479677,3.50218,3401.5,3401.2,0.4217]
[1735592479678,3.2078,3401.5,3401.2,0.4217]
[1735592479982,0.2944,3401.3,3401.2,0.29439]
[1735592481174,3.45122128,3401.4,3400.8,0.44]
[1735592481376,3.2078,3401.1,3400.4,4.62042907]
[1735592481579,0.29447,3400.5,3400.4,4.62042907]
[1735592481780,0.29447,3400.5,3400.4,4.91490907]
[1735592481981,0.4382,3400.5,3400.4,4.91490907]
[1735592482284,0.4382,3400.5,3400.4,0.29448]
[1735592483187,3.50226,3400.6,3400.4,0.29447]
[1735592483385,3.2078,3400.6,3400.5,0.29447]
[1735592485577,3.50226,3400.6,3400.5,0.29447]
[1735592486987,3.50226,3400.6,3400.4,0.29447]
[1735592488090,3.50226,3400.6,3400.3,0.4334]
[1735592488294,3.2078,3400.6,3400.5,0.29447]
[1735592491495,3.50226,3400.6,3400.4,0.29447]
[1735592491686,3.50226,3400.6,3400.5,0.29447]
[1735592492287,3.2078,3400.6,3400.5,0.29447]
[1735592492990,3.50226,3400.6,3400.3,0.4334]
[1735592493190,3.2078,3400.6,3399.6,5.35677907]
[1735592493491,0.29452,3399.9,3399.8,0.29452]
[1735592493688,3.2078,3400.0,3399.9,0.29452]
[1735592493689,3.50231,3400.0,3399.9,0.29452]
[1735592493889,0.29452,3399.9,3399.8,0.74212]
[1735592494299,3.2078,3400.0,3399.8,0.4476]
[1735592494592,3.50232,3400.0,3399.9,0.29452]
[1735592494991,3.50232,3400.0,3399.8,0.4476]
[1735592494992,3.2078,3400.0,3399.8,0.4476]
[1735592495188,3.50231,3400.0,3399.9,0.29452]
[1735592495792,3.50231,3400.0,3399.8,0.4476]
[1735592496095,0.29452,3399.9,3399.8,0.74212]
[1735592496390,3.50231,3400.0,3399.9,0.29452]
[1735592497293,3.50231,3400.0,3399.8,0.74212]
[1735592497294,0.29452,3399.9,3399.8,0.74212]
[1735592498195,0.29452,3399.9,3399.8,0.4476]
[1735592498391,0.29452,3399.9,3399.8,0.74213]
[1735592498692,3.2078,3400.0,3399.5,0.4555]
[1735592498693,3.2078,3400.0,3399.5,2.36479361]
[1735592498897,3.2078,3400.0,3399.9,0.29452]
[1735592499398,3.2078,3400.0,3399.8,0.4607]
[1735592499790,3.50231,3400.0,3399.9,0.29452]
[1735592503796,0.29452,3399.9,3399.8,0.75522]
[1735592503998,3.2078,3400.0,3399.8,0.4607]
[1735592504393,0.29452,3399.9,3399.8,0.4607]
[1735592504589,0.29452,3399.9,3399.8,0.75523]
[1735592505197,0.29452,3399.9,3399.8,0.4607]
[1735592505397,0.29452,3399.9,3399.8,0.75523]
[1735592506401,0.29453,3399.8,3399.7,0.29453]
[1735592506603,0.73233,3399.8,3399.7,0.29453]
[1735592507492,3.2078,3400.0,3399.8,0.29453]
[1735592507697,3.2078,3400.0,3399.9,0.72542]
[1735592507698,3.50231,3400.0,3399.9,0.72542]
[1735592511103,3.50231,3400.0,3399.9,0.29452]
[1735592511305,0.29454,3399.8,3399.7,0.29452]
[1735592513296,0.29456,3399.5,3399.4,0.29454]
[1735592515710,0.29456,3399.5,3399.4,41.09454]
[1735592515902,3.92605,3399.6,3399.5,0.29455]
[1735592516509,3.2078,3399.6,3399.5,0.29455]
[1735592518706,3.2078,3400.1,3399.4,43.16479361]
[1735592518911,3.45122128,3400.2,3399.8,0.73633]
[1735592519111,3.74571128,3400.2,3400.1,0.2945]
[1735592519404,0.29449,3400.3,3400.2,0.29448]
[1735592519910,3.88012128,3400.5,3400.3,0.29448]
[1735592519911,0.29448,3400.4,3400.3,0.29448]
[1735592520907,3.45122128,3400.5,3400.0,0.73627]
[1735592521119,0.29447,3400.5,3400.4,0.29447]
[1735592521408,3.6396,3400.6,3400.5,0.29447]
[1735592521409,3.93406,3400.6,3400.5,0.29447]
[1735592522110,3.6396,3400.6,3400.5,0.29447]
[1735592522307,3.93406,3400.6,3400.5,0.29447]
[1735592522506,3.6396,3400.6,3400.5,0.29447]
[1735592522810,3.93406,3400.6,3400.5,0.29447]
[1735592524112,3.93406,3400.6,3400.3,0.4533]
[1735592524113,3.6396,3400.6,3400.3,0.4533]
[1735592524318,3.6396,3400.6,3399.9,0.8655]
[1735592524510,0.2945,3400.2,3400.1,0.2945]
[1735592524810,0.2945,3400.2,3399.7,8.56456907]
[1735592524811,2.36479361,3400.2,3399.7,3.2078]
[1735592525005,0.89,3400.1,3399.6,5.06182907]
[1735592525407,0.29454,3399.7,3399.6,5.35636907]
[1735592525617,0.29453,3399.8,3399.7,0.29453]
[1735592528209,0.29452,3399.9,3399.8,0.29452]
[1735592528408,4.34122128,3400.1,3399.6,0.4414]
[1735592528620,0.29456,3399.5,3399.4,0.29456]
[1735592528819,2.65935361,3399.5,3399.4,0.29456]
[1735592529116,0.29456,3399.5,3399.4,0.29456]
[1735592530019,0.29456,3399.4,3399.3,4.62042907]
[1735592530210,0.72996,3399.4,3399.3,4.91499907]
[1735592530404,0.72996,3399.4,3398.9,9.17344181]
[1735592530405,0.4354,3399.4,3398.9,4.62042907]
[1735592530610,0.2946,3399.0,3398.9,4.62042907]
[1735592531811,0.4311,3399.1,3398.6,0.74663]
[1735592531812,3.88232128,3399.1,3398.6,0.74663]
[1735592532114,3.88232128,3399.1,3398.5,0.4494]
[1735592532115,3.2078,3398.7,3398.5,0.29463]
[1735592532313,0.29464,3398.5,3398.4,0.29465]
[1735592532519,0.72573,3398.6,3398.4,0.29465]
[1735592532821,0.4311,3398.6,3398.3,4.62042907]
[1735592533016,0.29465,3398.4,3398.3,4.62042907]
[1735592533217,0.4354,3398.5,3398.2,0.452]
[1735592533416,3.50246,3398.3,3398.1,0.4494]
[1735592533607,3.2078,3398.3,3398.2,0.29467]
[1735592533918,3.2078,3398.3,3398.1,0.4494]
[1735592534114,3.2078,3398.3,3398.0,0.29468]
[1735592534319,0.4354,3398.5,3397.9,41.2398]
[1735592534514,0.4354,3398.5,3398.2,0.29466]
[1735592534716,0.4354,3398.5,3398.1,0.29467]
[1735592535224,0.29465,3398.4,3398.1,0.29467]
[1735592535522,0.4354,3398.5,3397.9,40.8]
[1735592535712,0.29468,3398.0,3397.9,40.8]
[1735592535913,5.57259361,3398.3,3397.6,0.29471]
[1735592536211,0.2947,3397.9,3397.7,0.29471]
[1735592536413,5.57259361,3398.3,3397.5,3.2078]
[1735592536617,0.29469,3398.0,3397.5,3.2078]
[1735592536819,0.29469,3398.0,3397.7,0.2947]
[1735592537019,0.4177,3397.9,3397.8,0.2947]
[1735592537214,3.2078,3398.8,3397.5,5.57259361]
[1735592537417,4.60162838,3398.7,3398.6,0.29463]
[1735592538120,4.60162838,3398.7,3398.6,5.29463]
[1735592538121,3.21502838,3398.7,3398.6,5.29463]
[1735592538314,5.743716,3398.9,3398.8,0.29461]
[1735592538513,3.42839257,3399.6,3399.5,0.29455]
[1735592538822,3.42839257,3399.6,3399.5,2.65934361]
[1735592539319,3.42839257,3399.6,3399.5,43.45934361]
[1735592539824,0.4363,3399.8,3399.7,0.29454]
[1735592545431,0.4177,3400.1,3400.0,0.29451]
[1735592546223,0.71221,3400.1,3399.9,0.29451]
[1735592546423,0.7122,3400.1,3399.9,0.29451]
[1735592547520,0.7122,3400.1,3400.0,0.29451]
[1735592547921,0.4177,3400.1,3400.0,0.29451]
[1735592556321,3.6268,3400.2,3400.1,0.2945]
[1735592559029,3.2078,3400.2,3400.1,0.2945]
[1735592565925,0.72558,3400.4,3399.9,0.4594]
[1735592566120,0.72558,3400.4,3400.3,0.29448]
[1735592566325,3.93338,3400.4,3400.3,0.29448]
[1735592566844,3.93338,3400.4,3399.9,0.4594]
[1735592566845,0.29449,3400.3,3400.2,0.29448]
[1735592568033,3.6389,3400.4,3399.5,3.2078]
[1735592568234,3.2078,3400.0,3399.5,3.2078]
[1735592568533,0.8597,3399.9,3399.8,0.29452]
[1735592568733,1.15422,3399.9,3399.8,0.29452]
[1735592568936,0.8597,3399.9,3399.8,0.29452]
[1735592569631,1.15422,3399.9,3399.8,0.29452]
[1735592571532,0.8597,3399.9,3399.8,0.29452]
[1735592572631,1.15422,3399.9,3399.8,0.29452]
[1735592573031,0.8597,3399.9,3399.8,0.29452]
[1735592574436,1.15422,3399.9,3399.8,0.29452]
[1735592575939,0.4426,3399.9,3399.8,0.29452]
[1735592576240,0.73712,3399.9,3399.8,0.29452]
[1735592580545,0.4426,3399.9,3399.8,0.29452]
[1735592588547,0.4426,3399.9,3399.8,4.91494907]
[1735592590757,0.4426,3399.9,3399.8,0.29452]
[1735592591051,0.29453,3399.8,3399.7,3.92732907]
[1735592591258,0.72623,3399.8,3399.7,3.92732907]
[1735592592257,0.72623,3399.8,3399.3,0.29457]
[1735592592258,0.29456,3399.4,3399.3,0.29457]
[1735592592456,0.29456,3399.4,3399.0,6.89599003]
[1735592592457,0.29459,3399.1,3399.0,6.89599003]
[1735592593151,1.14979,3399.1,3399.0,6.89599003]
[1735592593452,0.29463,3398.7,3398.6,0.29462]
[1735592593655,0.29464,3398.6,3398.5,0.29463]
[1735592594052,0.29463,3398.7,3398.6,0.29463]
[1735592594453,0.29463,3398.7,3398.5,0.29463]
[1735592594659,3.44082834,3398.6,3398.5,0.29463]
[1735592595252,3.73545834,3398.7,3398.5,0.29463]
[1735592595555,3.73545834,3398.7,3398.6,0.29463]
[1735592595756,3.44082834,3398.7,3398.6,0.29463]
[1735592596255,0.4181,3398.8,3398.3,2.36479361]
[1735592596456,0.4181,3398.8,3398.7,0.29462]
[1735592597562,0.71271,3398.8,3398.7,0.29462]
[1735592597762,0.71271,3398.8,3398.6,0.29463]
[1735592598457,0.29463,3398.7,3398.6,0.29463]
[1735592598666,0.29463,3398.7,3398.5,0.29464]
[1735592598865,0.29462,3398.7,3398.5,0.29464]
[1735592600262,0.71272,3398.8,3398.6,0.29463]
[1735592601668,0.71272,3398.8,3398.2,44.0078]
[1735592601669,0.4181,3398.8,3398.2,44.0078]
[1735592601860,3.2078,3398.9,3398.8,0.29461]
[1735592605469,0.29462,3398.8,3398.7,0.29462]
[1735592605669,3.50241,3398.9,3398.7,0.29462]
[1735592605870,3.2078,3398.9,3398.8,0.29461]
[1735592606566,3.50241,3398.9,3398.8,0.29461]
[1735592607265,3.50241,3398.9,3398.7,0.29462]
[1735592607466,0.29463,3398.7,3398.5,0.29464]
[1735592607664,0.452,3398.6,3398.5,0.29464]
[1735592607859,0.9071,3398.6,3398.5,0.29464]
[1735592611472,0.9071,3398.6,3398.2,44.0078]
[1735592611676,0.9071,3398.6,3398.4,0.29465]
[1735592611677,0.73474,3398.5,3398.4,0.29465]
[1735592612972,0.29466,3398.4,3398.3,0.29465]
[1735592613174,0.4401,3398.5,3398.2,3.2078]
[1735592613376,0.29466,3398.3,3398.2,3.50246]
[1735592615779,0.4401,3398.5,3398.2,3.2078]
[1735592616076,0.9071,3398.6,3398.5,0.29464]
[1735592616269,1.20173,3398.6,3398.5,0.29464]
[1735592623485,0.29466,3398.4,3398.3,0.29465]
[1735592625183,0.9071,3398.6,3398.1,3.6507]
[1735592625381,0.29467,3398.3,3398.2,0.29466]
[1735592625876,0.9071,3398.6,3398.1,3.6507]
[1735592626080,0.29465,3398.4,3398.3,0.29465]
[1735592627587,3.2078,3398.4,3398.1,0.4429]
[1735592627883,0.29467,3398.2,3398.1,0.29467]
[1735592628085,3.2078,3398.4,3397.8,0.8572]
[1735592628387,0.29467,3398.2,3398.1,0.29467]
[1735592628580,3.2078,3398.4,3398.0,1.04098261]
[1735592628885,3.2078,3398.4,3397.7,1.93478]
[1735592628886,0.29466,3398.3,3398.2,0.29466]
[1735592629081,3.2078,3398.4,3397.7,1.15438]
[1735592629385,0.29468,3398.1,3398.0,0.29468]
[1735592629787,3.2078,3398.4,3398.0,0.29468]
[1735592630084,0.29467,3398.1,3398.0,0.29468]
[1735592630479,3.2078,3398.4,3397.8,40.8]